[Event "*** SCC Grand Prix: Titled Tuesday Blitz"]
[Site "Chess.com"]
[Date "2020.08.11"]
[Round "5"]
[White "Lion-Al-Messi"]
[Black "ZverevLev"]
[Result "1-0"]
[WhiteElo "2500"]
[BlackElo "2312"]
[TimeControl "180+1"]
[EndTime "10:52:19 PDT"]
[Termination "Lion-Al-Messi won by resignation"]

1. e4 {[%clk 0:03:00.9]} 1... e5 {[%clk 0:02:56.7]} 2. Nf3 {[%clk 0:03:01.2]}
2... Nc6 {[%clk 0:02:53.7]} 3. Bb5 {[%clk 0:03:00.5]} 3... a6 {[%clk 0:02:50.3]}
4. Ba4 {[%clk 0:03:00.8]} 4... Nf6 {[%clk 0:02:46.8]} 5. O-O {[%clk 0:03:00.6]}
5... Be7 {[%clk 0:02:45.1]} 6. Qe2 {[%clk 0:03:00.5]} 6... b5 {[%clk 0:02:43.2]}
7. Bb3 {[%clk 0:03:00.7]} 7... d6 {[%clk 0:02:44]} 8. c3 {[%clk 0:03:00.7]} 8...
O-O {[%clk 0:02:42.3]} 9. Rd1 {[%clk 0:03:00.3]} 9... Na5 {[%clk 0:02:40.6]} 10.
Bc2 {[%clk 0:02:59.9]} 10... c5 {[%clk 0:02:41]} 11. d4 {[%clk 0:03:00.3]} 11...
cxd4 {[%clk 0:02:30.3]} 12. cxd4 {[%clk 0:03:00.3]} 12... Qc7 {[%clk 0:02:29.8]}
13. Nc3 {[%clk 0:03:00.5]} 13... b4 {[%clk 0:02:27.2]} 14. Nd5 {[%clk
0:03:00.8]} 14... Nxd5 {[%clk 0:02:25.5]} 15. exd5 {[%clk 0:03:01.7]} 15... Bg4
{[%clk 0:02:19.2]} 16. dxe5 {[%clk 0:02:46]} 16... Bxf3 {[%clk 0:02:17.3]} 17.
gxf3 {[%clk 0:02:39]} 17... Rac8 {[%clk 0:02:16.3]} 18. Bf5 {[%clk 0:02:36.2]}
18... Qc4 {[%clk 0:02:11.6]} 19. Qxc4 {[%clk 0:02:32.8]} 19... Rxc4 {[%clk
0:02:12.5]} 20. e6 {[%clk 0:02:32.9]} 20... f6 {[%clk 0:02:09.6]} 21. Be3 {[%clk
0:02:32.1]} 21... g6 {[%clk 0:02:07.8]} 22. Bd3 {[%clk 0:02:31.5]} 22... Rcc8
{[%clk 0:02:04.4]} 23. Bxa6 {[%clk 0:02:31]} 23... Ra8 {[%clk 0:02:03.9]} 24.
Bd3 {[%clk 0:02:30.7]} 24... f5 {[%clk 0:02:03.1]} 25. Rdc1 {[%clk 0:02:29.4]}
25... Rfe8 {[%clk 0:01:55.9]} 26. Rab1 {[%clk 0:02:26.2]} 26... Nb7 {[%clk
0:01:51.3]} 27. Rc7 {[%clk 0:02:26]} 27... Nc5 {[%clk 0:01:47.9]} 28. Bxc5
{[%clk 0:02:26.2]} 28... dxc5 {[%clk 0:01:48.8]} 29. Bb5 {[%clk 0:02:27.1]}
29... Bd6 {[%clk 0:01:46.4]} 30. Bxe8 {[%clk 0:02:23.2]} 30... Bxc7 {[%clk
0:01:45.6]} 31. Bc6 {[%clk 0:02:23.7]} 31... Rb8 {[%clk 0:01:18.6]} 32. e7
{[%clk 0:02:23.4]} 32... Kf7 {[%clk 0:01:19.5]} 33. Re1 {[%clk 0:02:20.4]} 33...
Re8 {[%clk 0:01:20.4]} 34. Bxe8+ {[%clk 0:02:20.1]} 34... Kxe8 {[%clk
0:01:19.4]} 35. h3 {[%clk 0:02:17]} 35... c4 {[%clk 0:01:19.5]} 36. Rc1 {[%clk
0:02:16.8]} 36... Kxe7 {[%clk 0:01:17.8]} 37. Rxc4 {[%clk 0:02:16.9]} 37... Be5
{[%clk 0:01:18.7]} 1-0

[Event "*** SCC Grand Prix: Titled Tuesday Blitz"]
[Site "Chess.com"]
[Date "2020.08.11"]
[Round "5"]
[White "Lenyas66"]
[Black "Rainmond"]
[Result "0-1"]
[WhiteElo "2481"]
[BlackElo "2687"]
[TimeControl "180+1"]
[EndTime "10:52:48 PDT"]
[Termination "Rainmond won by resignation"]

1. e4 {[%clk 0:03:00.9]} 1... g6 {[%clk 0:02:57.7]} 2. d4 {[%clk 0:03:00.2]}
2... Bg7 {[%clk 0:02:58]} 3. Nc3 {[%clk 0:03:00.4]} 3... d6 {[%clk 0:02:58.3]}
4. h4 {[%clk 0:03:00.6]} 4... h6 {[%clk 0:02:58.3]} 5. h5 {[%clk 0:02:58.2]}
5... g5 {[%clk 0:02:58.6]} 6. Be2 {[%clk 0:02:57]} 6... Nc6 {[%clk 0:02:58.7]}
7. d5 {[%clk 0:02:55.5]} 7... Nd4 {[%clk 0:02:58.9]} 8. Be3 {[%clk 0:02:49.3]}
8... c5 {[%clk 0:02:58.4]} 9. dxc6 {[%clk 0:02:48.4]} 9... Nxc6 {[%clk
0:02:58.4]} 10. f4 {[%clk 0:02:35.5]} 10... gxf4 {[%clk 0:02:58.3]} 11. Bxf4
{[%clk 0:02:35.3]} 11... Nf6 {[%clk 0:02:59.2]} 12. Nf3 {[%clk 0:02:33.6]} 12...
Ng4 {[%clk 0:02:59]} 13. Qd2 {[%clk 0:02:31.3]} 13... Be6 {[%clk 0:02:59.2]} 14.
Nd5 {[%clk 0:02:25.7]} 14... Rc8 {[%clk 0:02:59.2]} 15. c3 {[%clk 0:02:25]}
15... Qa5 {[%clk 0:02:57.1]} 16. Nh4 {[%clk 0:01:42.2]} 16... Nf6 {[%clk
0:02:55.2]} 17. Bf3 {[%clk 0:01:24.6]} 17... Ne5 {[%clk 0:02:42.1]} 18. Bxe5
{[%clk 0:01:24.3]} 18... dxe5 {[%clk 0:02:43]} 19. O-O {[%clk 0:01:16.9]} 19...
Bxd5 {[%clk 0:02:38.4]} 20. exd5 {[%clk 0:01:16.2]} 20... e4 {[%clk 0:02:38.7]}
21. Nf5 {[%clk 0:01:12.4]} 21... exf3 {[%clk 0:02:38.6]} 22. Nxg7+ {[%clk
0:01:11.7]} 22... Kf8 {[%clk 0:02:38.9]} 23. Nf5 {[%clk 0:01:11.7]} 23... fxg2
{[%clk 0:02:36.9]} 24. Rfd1 {[%clk 0:01:10.4]} 24... Qc5+ {[%clk 0:02:33.9]} 25.
Kxg2 {[%clk 0:01:09]} 25... Rg8+ {[%clk 0:02:33.7]} 26. Kf3 {[%clk 0:01:03.6]}
26... Rg5 {[%clk 0:02:27.2]} 27. Nxh6 {[%clk 0:00:55.4]} 27... Rxh5 {[%clk
0:02:26.8]} 28. Qd4 {[%clk 0:00:20]} 0-1

[Event "*** SCC Grand Prix: Titled Tuesday Blitz"]
[Site "Chess.com"]
[Date "2020.08.11"]
[Round "5"]
[White "bascheyaro"]
[Black "londonkid"]
[Result "1-0"]
[WhiteElo "2709"]
[BlackElo "2453"]
[TimeControl "180+1"]
[EndTime "10:52:51 PDT"]
[Termination "bascheyaro won by checkmate"]

1. d4 {[%clk 0:03:00.9]} 1... Nf6 {[%clk 0:02:59.7]} 2. Nc3 {[%clk 0:03:00.9]}
2... e6 {[%clk 0:02:59.8]} 3. e4 {[%clk 0:02:59.7]} 3... d5 {[%clk 0:03:00.1]}
4. e5 {[%clk 0:02:59.9]} 4... Nfd7 {[%clk 0:02:59.6]} 5. f4 {[%clk 0:03:00]}
5... c5 {[%clk 0:03:00.3]} 6. Nf3 {[%clk 0:02:59.4]} 6... Nc6 {[%clk 0:03:00.9]}
7. Bd3 {[%clk 0:02:59.2]} 7... a6 {[%clk 0:03:01.6]} 8. O-O {[%clk 0:02:59]}
8... cxd4 {[%clk 0:02:59.8]} 9. Ne2 {[%clk 0:02:59]} 9... Bc5 {[%clk 0:02:59.5]}
10. a3 {[%clk 0:02:58.9]} 10... b5 {[%clk 0:02:46.6]} 11. b4 {[%clk 0:02:58.4]}
11... Bb6 {[%clk 0:02:47.1]} 12. Qe1 {[%clk 0:02:57.4]} 12... Bb7 {[%clk
0:02:45.1]} 13. Qg3 {[%clk 0:02:54.6]} 13... g6 {[%clk 0:02:44.8]} 14. h4 {[%clk
0:02:52.3]} 14... Qe7 {[%clk 0:02:41.9]} 15. Bb2 {[%clk 0:02:50.4]} 15... O-O-O
{[%clk 0:02:30.6]} 16. Nexd4 {[%clk 0:02:49.1]} 16... Nxd4 {[%clk 0:02:28.3]}
17. Bxd4 {[%clk 0:02:48.2]} 17... Kb8 {[%clk 0:02:23.7]} 18. c3 {[%clk
0:02:45.9]} 18... Bxd4+ {[%clk 0:02:22.5]} 19. Nxd4 {[%clk 0:02:44.7]} 19... Nb6
{[%clk 0:02:22.9]} 20. Rfc1 {[%clk 0:02:40.3]} 20... Rc8 {[%clk 0:02:22.9]} 21.
Bc2 {[%clk 0:02:33]} 21... Rc7 {[%clk 0:02:19.8]} 22. a4 {[%clk 0:02:32.9]}
22... bxa4 {[%clk 0:02:16.9]} 23. Bxa4 {[%clk 0:02:30.9]} 23... Rhc8 {[%clk
0:02:15.7]} 24. Bd1 {[%clk 0:02:28.9]} 24... Rc4 {[%clk 0:02:03.5]} 25. Be2
{[%clk 0:02:28.4]} 25... R4c7 {[%clk 0:01:59.4]} 26. b5 {[%clk 0:02:25.8]} 26...
a5 {[%clk 0:01:59.2]} 27. Rxa5 {[%clk 0:02:24.5]} 27... Nc4 {[%clk 0:01:57.8]}
28. Bxc4 {[%clk 0:02:23.1]} 28... Rxc4 {[%clk 0:01:57.8]} 29. Qe3 {[%clk
0:02:13.4]} 29... Qc5 {[%clk 0:01:52.7]} 30. Raa1 {[%clk 0:01:48.6]} 30... Rxc3
{[%clk 0:01:40.4]} 31. Rxc3 {[%clk 0:01:48.3]} 31... Qxc3 {[%clk 0:01:40.5]} 32.
Nc6+ {[%clk 0:01:48.7]} 32... Rxc6 {[%clk 0:01:40.1]} 33. Qa7+ {[%clk
0:01:48.8]} 33... Kc8 {[%clk 0:01:35.8]} 34. bxc6 {[%clk 0:01:49.2]} 34... Qxc6
{[%clk 0:01:35.6]} 35. Qa3 {[%clk 0:01:42.1]} 35... Kd7 {[%clk 0:01:35.5]} 36.
Rc1 {[%clk 0:01:40.3]} 36... Qb6+ {[%clk 0:01:34.9]} 37. Kh2 {[%clk 0:01:37.1]}
37... Qf2 {[%clk 0:01:31.8]} 38. Qd6+ {[%clk 0:01:33.4]} 38... Ke8 {[%clk
0:01:31.8]} 39. Qb8+ {[%clk 0:01:33.8]} 39... Ke7 {[%clk 0:01:28.8]} 40. Rc7#
{[%clk 0:01:33.7]} 1-0

[Event "*** SCC Grand Prix: Titled Tuesday Blitz"]
[Site "Chess.com"]
[Date "2020.08.11"]
[Round "5"]
[White "Roaccutane"]
[Black "eCztery"]
[Result "0-1"]
[WhiteElo "2577"]
[BlackElo "2429"]
[TimeControl "180+1"]
[EndTime "10:52:51 PDT"]
[Termination "eCztery won by resignation"]

1. d4 {[%clk 0:03:00.9]} 1... Nf6 {[%clk 0:02:58.7]} 2. c4 {[%clk 0:03:00.6]}
2... e6 {[%clk 0:02:58.7]} 3. Nf3 {[%clk 0:03:00.5]} 3... d5 {[%clk 0:02:58.9]}
4. Nc3 {[%clk 0:03:00.2]} 4... Bb4 {[%clk 0:02:58.4]} 5. e3 {[%clk 0:02:58.5]}
5... O-O {[%clk 0:02:55.2]} 6. Bd3 {[%clk 0:02:57.8]} 6... dxc4 {[%clk
0:02:53.6]} 7. Bxc4 {[%clk 0:02:57.9]} 7... Nbd7 {[%clk 0:02:45.6]} 8. a3 {[%clk
0:02:57.7]} 8... Bd6 {[%clk 0:02:39.9]} 9. b4 {[%clk 0:02:57.7]} 9... e5 {[%clk
0:02:35.8]} 10. O-O {[%clk 0:02:48.2]} 10... a6 {[%clk 0:02:23.8]} 11. Qc2
{[%clk 0:02:35.6]} 11... h6 {[%clk 0:02:21.3]} 12. Rd1 {[%clk 0:02:25.2]} 12...
Qe7 {[%clk 0:02:18.4]} 13. Bb2 {[%clk 0:02:20.6]} 13... e4 {[%clk 0:01:59.7]}
14. Nd2 {[%clk 0:02:20]} 14... Nb6 {[%clk 0:01:47.7]} 15. Bf1 {[%clk 0:01:47.9]}
15... Bxh2+ {[%clk 0:01:26.3]} 16. Kxh2 {[%clk 0:01:42.4]} 16... Ng4+ {[%clk
0:01:26.6]} 17. Kg3 {[%clk 0:01:40.8]} 17... Qd6+ {[%clk 0:01:17.8]} 18. f4
{[%clk 0:01:32.3]} 18... exf3+ {[%clk 0:01:17.8]} 19. Kxf3 {[%clk 0:01:30.7]}
19... Qf6+ {[%clk 0:01:18.1]} 20. Ke2 {[%clk 0:01:18.1]} 20... Qf2+ {[%clk
0:01:05.2]} 0-1

[Event "*** SCC Grand Prix: Titled Tuesday Blitz"]
[Site "Chess.com"]
[Date "2020.08.11"]
[Round "5"]
[White "exoticprincess"]
[Black "GoltsevDmitry2000"]
[Result "1-0"]
[WhiteElo "2836"]
[BlackElo "2621"]
[TimeControl "180+1"]
[EndTime "10:52:58 PDT"]
[Termination "exoticprincess won by checkmate"]

1. b3 {[%clk 0:03:00.9]} 1... c6 {[%clk 0:02:57.8]} 2. Bb2 {[%clk 0:03:01.8]}
2... d5 {[%clk 0:02:57.9]} 3. e3 {[%clk 0:03:02.7]} 3... Nd7 {[%clk 0:02:56.6]}
4. Nc3 {[%clk 0:03:01.8]} 4... Ngf6 {[%clk 0:02:56.7]} 5. d4 {[%clk 0:03:01.9]}
5... g6 {[%clk 0:02:44.3]} 6. f3 {[%clk 0:02:58.8]} 6... Bg7 {[%clk 0:02:44.7]}
7. Nge2 {[%clk 0:02:59.2]} 7... O-O {[%clk 0:02:43]} 8. Qd2 {[%clk 0:02:59.7]}
8... Re8 {[%clk 0:02:42.9]} 9. O-O-O {[%clk 0:02:59.4]} 9... Qc7 {[%clk
0:02:41.9]} 10. g4 {[%clk 0:02:59.6]} 10... e5 {[%clk 0:02:40.6]} 11. h4 {[%clk
0:02:59.6]} 11... e4 {[%clk 0:02:39.1]} 12. fxe4 {[%clk 0:02:54.5]} 12... Nxg4
{[%clk 0:02:32.2]} 13. Nf4 {[%clk 0:02:45.3]} 13... dxe4 {[%clk 0:02:24.5]} 14.
h5 {[%clk 0:02:45.7]} 14... g5 {[%clk 0:02:14.9]} 15. h6 {[%clk 0:02:46.1]}
15... gxf4 {[%clk 0:01:51.5]} 16. hxg7 {[%clk 0:02:46.5]} 16... fxe3 {[%clk
0:00:56.5]} 17. Qg2 {[%clk 0:02:46]} 17... Nf2 {[%clk 0:00:52.8]} 18. Bc4 {[%clk
0:02:46.2]} 18... Nf6 {[%clk 0:00:41.2]} 19. d5 {[%clk 0:02:43.8]} 19... Qf4
{[%clk 0:00:38.5]} 20. Ne2 {[%clk 0:02:41.9]} 20... Qg4 {[%clk 0:00:14.2]} 21.
Qh2 {[%clk 0:02:41.1]} 21... Qh3 {[%clk 0:00:12.2]} 22. Qf4 {[%clk 0:02:35.5]}
22... Nxh1 {[%clk 0:00:12.3]} 23. Qxf6 {[%clk 0:02:35.4]} 23... cxd5 {[%clk
0:00:12]} 24. Bxd5 {[%clk 0:02:35.4]} 24... Be6 {[%clk 0:00:12.4]} 25. Nf4
{[%clk 0:02:34.9]} 25... Qf5 {[%clk 0:00:08.3]} 26. Qxf5 {[%clk 0:02:34]} 26...
Bxf5 {[%clk 0:00:09.2]} 27. Nh5 {[%clk 0:02:33.3]} 27... Nf2 {[%clk 0:00:07.2]}
28. Nf6+ {[%clk 0:02:33.4]} 28... Kxg7 {[%clk 0:00:07.6]} 29. Rg1+ {[%clk
0:02:32.4]} 29... Kf8 {[%clk 0:00:07.2]} 30. Ba3+ {[%clk 0:02:32.7]} 30... Re7
{[%clk 0:00:06.9]} 31. Rg8# {[%clk 0:02:33.6]} 1-0

[Event "*** SCC Grand Prix: Titled Tuesday Blitz"]
[Site "Chess.com"]
[Date "2020.08.11"]
[Round "5"]
[White "Tsyhanchuk_Stanislav"]
[Black "gurelediz"]
[Result "0-1"]
[WhiteElo "2384"]
[BlackElo "2548"]
[TimeControl "180+1"]
[EndTime "10:52:58 PDT"]
[Termination "gurelediz won by resignation"]

1. e4 {[%clk 0:03:00.9]} 1... c5 {[%clk 0:02:59.4]} 2. Nf3 {[%clk 0:03:01.3]}
2... e6 {[%clk 0:03:00]} 3. d4 {[%clk 0:03:01.8]} 3... cxd4 {[%clk 0:03:00.9]}
4. Nxd4 {[%clk 0:03:02.7]} 4... Nc6 {[%clk 0:03:00.7]} 5. Nc3 {[%clk 0:03:02.4]}
5... Qc7 {[%clk 0:03:01.4]} 6. f4 {[%clk 0:03:01.5]} 6... a6 {[%clk 0:03:01.3]}
7. Be3 {[%clk 0:03:01.3]} 7... b5 {[%clk 0:03:00.3]} 8. Bd3 {[%clk 0:02:59.8]}
8... Bb7 {[%clk 0:02:59.6]} 9. Qf3 {[%clk 0:02:58.6]} 9... Nb4 {[%clk
0:02:53.8]} 10. O-O {[%clk 0:02:55.3]} 10... Nf6 {[%clk 0:02:51.1]} 11. a3
{[%clk 0:02:51.3]} 11... Nc6 {[%clk 0:02:48.5]} 12. Rae1 {[%clk 0:02:44.6]}
12... Nxd4 {[%clk 0:02:40.2]} 13. Bxd4 {[%clk 0:02:45.5]} 13... Bc5 {[%clk
0:02:40.7]} 14. Bxc5 {[%clk 0:02:40]} 14... Qxc5+ {[%clk 0:02:41.6]} 15. Kh1
{[%clk 0:02:40.5]} 15... O-O {[%clk 0:02:36.3]} 16. Qg3 {[%clk 0:02:40.2]} 16...
d5 {[%clk 0:02:25.8]} 17. e5 {[%clk 0:02:38.3]} 17... Ne4 {[%clk 0:02:25.7]} 18.
Bxe4 {[%clk 0:02:28.5]} 18... dxe4 {[%clk 0:02:24.8]} 19. f5 {[%clk 0:02:26.9]}
19... exf5 {[%clk 0:02:21]} 20. Rxf5 {[%clk 0:02:27.8]} 20... Qc4 {[%clk
0:02:06.5]} 21. Rg5 {[%clk 0:02:16.7]} 21... g6 {[%clk 0:02:05.6]} 22. h4 {[%clk
0:02:16.5]} 22... Rad8 {[%clk 0:01:57.5]} 23. h5 {[%clk 0:02:13.7]} 23... Kg7
{[%clk 0:01:52.7]} 24. Qf4 {[%clk 0:02:07.9]} 24... f6 {[%clk 0:01:40.7]} 25.
h6+ {[%clk 0:02:03.1]} 25... Kg8 {[%clk 0:01:35.8]} 26. exf6 {[%clk 0:02:02.5]}
26... Rde8 {[%clk 0:01:23.4]} 27. Re5 {[%clk 0:01:48.9]} 27... Rxe5 {[%clk
0:01:21.5]} 28. Qxe5 {[%clk 0:01:49.8]} 28... e3 {[%clk 0:01:21.6]} 29. Rf1
{[%clk 0:01:13.1]} 29... Qxf1+ {[%clk 0:01:20.4]} 0-1

[Event "*** SCC Grand Prix: Titled Tuesday Blitz"]
[Site "Chess.com"]
[Date "2020.08.11"]
[Round "5"]
[White "Nemsko"]
[Black "Lupul_Cenusiu"]
[Result "1-0"]
[WhiteElo "2352"]
[BlackElo "2489"]
[TimeControl "180+1"]
[EndTime "10:53:03 PDT"]
[Termination "Nemsko won by checkmate"]

1. e4 {[%clk 0:03:00.9]} 1... c5 {[%clk 0:02:59.1]} 2. Nf3 {[%clk 0:03:01]} 2...
e6 {[%clk 0:02:58.4]} 3. d4 {[%clk 0:03:01.7]} 3... cxd4 {[%clk 0:02:58]} 4.
Nxd4 {[%clk 0:03:02.6]} 4... a6 {[%clk 0:02:58.2]} 5. Nc3 {[%clk 0:03:01.4]}
5... d6 {[%clk 0:02:57.8]} 6. Be3 {[%clk 0:03:00.8]} 6... Nf6 {[%clk 0:02:57.8]}
7. f4 {[%clk 0:03:00.6]} 7... Qc7 {[%clk 0:02:56.7]} 8. Be2 {[%clk 0:03:00.2]}
8... Be7 {[%clk 0:02:55.6]} 9. O-O {[%clk 0:03:00.6]} 9... Nc6 {[%clk 0:02:55]}
10. Kh1 {[%clk 0:02:56.4]} 10... Bd7 {[%clk 0:02:53.6]} 11. Qe1 {[%clk
0:02:55.9]} 11... Nxd4 {[%clk 0:02:53.1]} 12. Bxd4 {[%clk 0:02:56.8]} 12... O-O
{[%clk 0:02:49.4]} 13. Qg3 {[%clk 0:02:53.5]} 13... Rac8 {[%clk 0:02:37.5]} 14.
Bd3 {[%clk 0:02:42.5]} 14... b5 {[%clk 0:02:17.2]} 15. e5 {[%clk 0:02:35.6]}
15... Ne8 {[%clk 0:02:06.1]} 16. Ne4 {[%clk 0:02:17.7]} 16... d5 {[%clk
0:02:01.5]} 17. Ng5 {[%clk 0:02:15]} 17... h6 {[%clk 0:02:00.7]} 18. Nh7 {[%clk
0:02:13.9]} 18... g6 {[%clk 0:01:43.9]} 19. Bxg6 {[%clk 0:01:42.7]} 19... fxg6
{[%clk 0:01:42]} 20. Qxg6+ {[%clk 0:01:43.6]} 20... Ng7 {[%clk 0:01:41.3]} 21.
Nf6+ {[%clk 0:01:34.4]} 21... Bxf6 {[%clk 0:01:40.6]} 22. exf6 {[%clk
0:01:35.3]} 22... Be8 {[%clk 0:01:40.7]} 23. Qxh6 {[%clk 0:01:27.7]} 23... Nf5
{[%clk 0:01:35.7]} 24. Qg5+ {[%clk 0:00:50.3]} 24... Kf7 {[%clk 0:01:35.6]} 25.
Qh5+ {[%clk 0:00:47.9]} 25... Kg8 {[%clk 0:01:31.9]} 26. f7+ {[%clk 0:00:45.7]}
26... Rxf7 {[%clk 0:01:31.9]} 27. Qh8# {[%clk 0:00:45.8]} 1-0

[Event "*** SCC Grand Prix: Titled Tuesday Blitz"]
[Site "Chess.com"]
[Date "2020.08.11"]
[Round "5"]
[White "canary2016"]
[Black "Chernobay_Artem"]
[Result "0-1"]
[WhiteElo "1865"]
[BlackElo "2492"]
[TimeControl "180+1"]
[EndTime "10:53:07 PDT"]
[Termination "Chernobay_Artem won by checkmate"]

1. d4 {[%clk 0:03:00.9]} 1... Nf6 {[%clk 0:02:59.9]} 2. c4 {[%clk 0:03:00.1]}
2... g6 {[%clk 0:02:59.5]} 3. Nf3 {[%clk 0:02:59.5]} 3... Bg7 {[%clk 0:02:59.8]}
4. g3 {[%clk 0:02:59.9]} 4... O-O {[%clk 0:02:58.5]} 5. Bg2 {[%clk 0:03:00.2]}
5... d6 {[%clk 0:02:58.6]} 6. O-O {[%clk 0:03:00]} 6... Ne4 {[%clk 0:02:58.7]}
7. Nc3 {[%clk 0:02:57.6]} 7... Nxc3 {[%clk 0:02:57.7]} 8. bxc3 {[%clk
0:02:57.3]} 8... Nc6 {[%clk 0:02:55.8]} 9. e4 {[%clk 0:02:56.7]} 9... Na5 {[%clk
0:02:54]} 10. Qe2 {[%clk 0:02:49.4]} 10... c5 {[%clk 0:02:52.2]} 11. Bb2 {[%clk
0:02:44.1]} 11... b6 {[%clk 0:02:49.6]} 12. Rad1 {[%clk 0:02:42.7]} 12... Ba6
{[%clk 0:02:49]} 13. Rfe1 {[%clk 0:02:36.5]} 13... Bxc4 {[%clk 0:02:46]} 14. Qd2
{[%clk 0:02:35.3]} 14... Bxa2 {[%clk 0:02:44.5]} 15. Ra1 {[%clk 0:02:21]} 15...
Nb3 {[%clk 0:02:42.4]} 16. Qc2 {[%clk 0:02:17.8]} 16... Nxa1 {[%clk 0:02:42.3]}
17. Rxa1 {[%clk 0:02:17.7]} 17... Bc4 {[%clk 0:02:42.3]} 18. Ra4 {[%clk
0:02:16]} 18... b5 {[%clk 0:02:41.7]} 19. Ra1 {[%clk 0:02:14.8]} 19... a5 {[%clk
0:02:39.6]} 20. e5 {[%clk 0:02:07.4]} 20... Bd5 {[%clk 0:02:39.3]} 21. exd6
{[%clk 0:02:04.5]} 21... exd6 {[%clk 0:02:37.9]} 22. dxc5 {[%clk 0:02:04.4]}
22... dxc5 {[%clk 0:02:36.6]} 23. Rd1 {[%clk 0:02:03.9]} 23... Be4 {[%clk
0:02:15.5]} 24. Qe2 {[%clk 0:01:53.8]} 24... Qe8 {[%clk 0:02:12.9]} 25. Qe3
{[%clk 0:01:41.8]} 25... c4 {[%clk 0:02:02.4]} 26. Re1 {[%clk 0:01:36.9]} 26...
Bxf3 {[%clk 0:01:57.1]} 27. Bxf3 {[%clk 0:01:35.2]} 27... Qxe3 {[%clk
0:01:56.9]} 28. Rxe3 {[%clk 0:01:33.4]} 28... Rad8 {[%clk 0:01:51.8]} 29. Bd5
{[%clk 0:01:30.3]} 29... Rxd5 {[%clk 0:01:51.2]} 30. Kg2 {[%clk 0:01:29.3]}
30... b4 {[%clk 0:01:48.2]} 31. cxb4 {[%clk 0:01:27.1]} 31... Bxb2 {[%clk
0:01:47.6]} 32. bxa5 {[%clk 0:01:26.4]} 32... Rxa5 {[%clk 0:01:47.1]} 33. Re4
{[%clk 0:01:25.3]} 33... c3 {[%clk 0:01:47.2]} 34. Rc4 {[%clk 0:01:24.9]} 34...
Raa8 {[%clk 0:01:47.4]} 35. Kf3 {[%clk 0:01:23.5]} 35... Rac8 {[%clk 0:01:47.6]}
36. Rb4 {[%clk 0:01:21.9]} 36... c2 {[%clk 0:01:47.6]} 37. Rxb2 {[%clk 0:01:21]}
37... c1=Q {[%clk 0:01:48.2]} 38. Re2 {[%clk 0:01:20.1]} 38... Qd1 {[%clk
0:01:47.4]} 39. h4 {[%clk 0:01:18]} 39... Rfe8 {[%clk 0:01:47.1]} 40. h5 {[%clk
0:01:18]} 40... Qxe2+ {[%clk 0:01:46.6]} 41. Kg2 {[%clk 0:01:17.7]} 41... Rc2
{[%clk 0:01:46.3]} 42. Kh3 {[%clk 0:01:16.6]} 42... Qxh5+ {[%clk 0:01:45.8]} 43.
Kg2 {[%clk 0:01:16]} 43... Rxf2+ {[%clk 0:01:45.7]} 44. Kxf2 {[%clk 0:01:15.7]}
44... Re2+ {[%clk 0:01:46.6]} 45. Kf1 {[%clk 0:01:15.5]} 45... Qf3+ {[%clk
0:01:46.8]} 46. Kg1 {[%clk 0:01:13.1]} 46... Qg2# {[%clk 0:01:47.7]} 0-1

[Event "*** SCC Grand Prix: Titled Tuesday Blitz"]
[Site "Chess.com"]
[Date "2020.08.11"]
[Round "5"]
[White "temus_galaktionov"]
[Black "Sultanasharminshirin"]
[Result "1-0"]
[WhiteElo "2664"]
[BlackElo "2043"]
[TimeControl "180+1"]
[EndTime "10:53:08 PDT"]
[Termination "temus_galaktionov won by resignation"]

1. d4 {[%clk 0:03:00.9]} 1... d5 {[%clk 0:02:59.2]} 2. Nf3 {[%clk 0:03:01.4]}
2... Nf6 {[%clk 0:02:58.6]} 3. c4 {[%clk 0:03:02.3]} 3... c6 {[%clk 0:02:58.8]}
4. Qb3 {[%clk 0:03:01.8]} 4... Qb6 {[%clk 0:02:43.6]} 5. Nc3 {[%clk 0:03:00.9]}
5... Qxb3 {[%clk 0:02:37.5]} 6. axb3 {[%clk 0:03:01.8]} 6... Bf5 {[%clk
0:02:16.8]} 7. Bf4 {[%clk 0:03:01.1]} 7... e6 {[%clk 0:02:15.4]} 8. c5 {[%clk
0:02:58]} 8... Nbd7 {[%clk 0:02:14]} 9. b4 {[%clk 0:02:56]} 9... Be7 {[%clk
0:02:11.1]} 10. e3 {[%clk 0:02:55.5]} 10... O-O {[%clk 0:02:11.1]} 11. b5 {[%clk
0:02:56.1]} 11... h6 {[%clk 0:02:09.4]} 12. h3 {[%clk 0:02:53.4]} 12... Bh7
{[%clk 0:02:03.6]} 13. bxc6 {[%clk 0:02:52.8]} 13... bxc6 {[%clk 0:02:02.6]} 14.
Ba6 {[%clk 0:02:53.4]} 14... e5 {[%clk 0:01:38.7]} 15. Nxe5 {[%clk 0:02:51.9]}
15... Nxe5 {[%clk 0:01:35.3]} 16. Bxe5 {[%clk 0:02:52.8]} 16... Nd7 {[%clk
0:01:31.3]} 17. Bg3 {[%clk 0:02:51.9]} 17... Bxc5 {[%clk 0:01:12.1]} 18. dxc5
{[%clk 0:02:50.9]} 18... Nxc5 {[%clk 0:01:11.6]} 19. O-O {[%clk 0:02:51.4]}
19... Nxa6 {[%clk 0:01:09.2]} 20. Rxa6 {[%clk 0:02:50.5]} 20... Bd3 {[%clk
0:01:09.7]} 21. Rxc6 {[%clk 0:02:48.1]} 21... Bxf1 {[%clk 0:01:09.1]} 22. Kxf1
{[%clk 0:02:49]} 22... Rfd8 {[%clk 0:01:07.8]} 23. Be5 {[%clk 0:02:48.6]} 23...
Rd7 {[%clk 0:01:04.2]} 24. Bd4 {[%clk 0:02:47.4]} 24... Rb8 {[%clk 0:01:02.6]}
25. Ne2 {[%clk 0:02:45.1]} 25... g5 {[%clk 0:00:56.6]} 26. Rxh6 {[%clk
0:02:42.5]} 26... f6 {[%clk 0:00:30]} 27. Rxf6 {[%clk 0:02:41.2]} 27... Kh7
{[%clk 0:00:23.5]} 28. g4 {[%clk 0:02:39.4]} 28... a5 {[%clk 0:00:16.6]} 29. Ra6
{[%clk 0:02:38.1]} 29... Rb5 {[%clk 0:00:16.3]} 30. Ng3 {[%clk 0:02:38.2]} 30...
Rdb7 {[%clk 0:00:13.3]} 31. Nf5 {[%clk 0:02:37.7]} 1-0